lending/lending_fUSD_20240710
["ID","MTS","AMOUNT","RATE_DAILY","PERIOD"]
[331623695,1720585902576,-2757.34,0.00013917,2]
[331623696,1720585902585,-1043.22,0.00013917,2]
[331623697,1720585902595,-500.0,0.00013917,2]
[331623698,1720585902605,-2189.67,0.00013917,2]
[331623699,1720585902615,-527.31722657,0.00013917,2]
[331623700,1720585902626,-1702.95,0.00013917,2]
[331623701,1720585902638,-3314.85,0.00013917,2]
[331623702,1720585902649,-500.0,0.00013917,2]
[331623703,1720585902660,-741.44,0.00013917,2]
[331623704,1720585902671,-839.88,0.00013917,2]
[331623705,1720585902681,-2923.33,0.00013917,2]
[331623706,1720585902696,-1902.61,0.00013917,2]
[331623707,1720585902706,-1994.49,0.00013917,2]
[331623708,1720585902717,-1618.65,0.00013917,2]
[331623709,1720585902727,-538.92,0.00013917,2]
[331623710,1720585902742,-4002.69,0.00013917,2]
[331623711,1720585902752,-1258.01,0.00013917,2]
[331623712,1720585902762,-919.87,0.00013917,2]
[331623713,1720585902771,-1005.94,0.00013917,2]
[331623714,1720585902781,-1626.65,0.00013917,2]
[331623715,1720585902790,-1501.72,0.00013917,2]
[331623716,1720585902799,-500.0,0.00013917,2]
[331623717,1720585902809,-534.46,0.00013917,2]
[331623718,1720585902818,-500.0,0.00013917,2]
[331623719,1720585902827,-1316.77,0.00013917,2]
[331623720,1720585902837,-1299.02,0.00013917,2]
[331623721,1720585902846,-500.0,0.00013917,2]
[331623722,1720585902856,-500.0,0.00013917,2]
[331623723,1720585902866,-639.02,0.00013917,2]
[331623724,1720585902876,-500.0,0.00013917,2]
[331623725,1720585902886,-2039.93,0.00013917,2]
[331623726,1720585902897,-3890.51,0.00013917,2]
[331623727,1720585902906,-785.81,0.00013917,2]
[331623728,1720585902916,-500.0,0.00013917,2]
[331623729,1720585902926,-500.0,0.00013917,2]
[331623730,1720585902935,-500.0,0.00013917,2]
[331623731,1720585902945,-584.49,0.00013917,2]
[331623732,1720585902956,-2349.78,0.00013917,2]
[331623733,1720585902966,-1321.33,0.00013917,2]
[331623734,1720585902975,-500.0,0.00013917,2]
[331623735,1720585902987,-500.0,0.00013917,2]
[331623736,1720585902997,-3915.02,0.00013917,2]
[331623737,1720585903006,-2839.81,0.00013917,2]
[331623738,1720585903016,-500.0,0.00013917,2]
[331623739,1720585903025,-1071.86,0.00013917,2]
[331623740,1720585903034,-1103.25,0.00013917,2]
[331623741,1720585903043,-1200.03,0.00013917,2]
[331623742,1720585903054,-500.0,0.00013917,2]
[331623743,1720585903063,-500.0,0.00013917,2]
[331623744,1720585903073,-2204.56,0.00013917,2]
[331623745,1720585903083,-500.0,0.00013917,2]
[331623746,1720585903093,-500.0,0.00013917,2]
[331623747,1720585903103,-1389.91,0.00013917,2]
[331623748,1720585903113,-500.0,0.00013917,2]
[331623749,1720585903122,-897.34,0.00013917,2]
[331623750,1720585903132,-944.96,0.00013917,2]
[331623751,1720585903142,-673.15,0.00013917,2]
[331623752,1720585903151,-1031.98,0.00013917,2]
[331623753,1720585903161,-3293.49,0.00013917,2]
[331623754,1720585903172,-3369.51,0.00013917,2]
[331623755,1720585903185,-2323.58,0.00013917,2]
[331623756,1720585903198,-1418.12,0.00013917,2]
[331623757,1720585903219,-984.4,0.00013917,2]
[331623758,1720585903229,-500.0,0.00013917,2]
[331623759,1720585903243,-500.0,0.00013917,2]
[331623760,1720585903254,-500.0,0.00013917,2]
[331623761,1720585903264,-500.0,0.00013917,2]
[331623762,1720585903273,-1195.01,0.00013917,2]
[331623763,1720585903283,-500.0,0.00013917,2]
[331623764,1720585903293,-837.15,0.00013917,2]
[331623765,1720585903303,-500.0,0.00013917,2]
[331623766,1720585903313,-2063.93,0.00013917,2]
[331623767,1720585903323,-1806.9,0.00013917,2]
[331623768,1720585903333,-1065.36,0.00013917,2]
[331623769,1720585903342,-500.0,0.00013917,2]
[331623770,1720585903351,-553.64,0.00013917,2]
[331623771,1720585903361,-2148.34,0.00013917,2]
[331623772,1720585903371,-2044.0,0.00013917,2]
[331623773,1720585903380,-2043.48,0.00013917,2]
[331623774,1720585903390,-1701.58,0.00013917,2]
[331623775,1720585903399,-500.0,0.00013917,2]
[331623776,1720585903410,-500.0,0.00013917,2]
[331623777,1720585903419,-500.0,0.00013917,2]
[331623778,1720585903429,-1026.79,0.00013917,2]
[331623779,1720585903437,-500.0,0.00013917,2]
[331623780,1720585903447,-1891.65,0.00013917,2]
[331623781,1720585903457,-1992.52,0.00013917,2]
[331623782,1720585903467,-500.0,0.00013917,2]
[331623783,1720585903477,-500.0,0.00013917,2]
[331623784,1720585903490,-2271.67,0.00013917,2]
[331623785,1720585903500,-500.0,0.00013917,2]
[331623786,1720585903510,-500.0,0.00013917,2]
[331623787,1720585903520,-941.27,0.00013917,2]
[331623788,1720585903529,-771.79,0.00013917,2]
[331623789,1720585903539,-3648.29,0.00013917,2]
[331623790,1720585903549,-1240.51,0.00013917,2]
[331623791,1720585903559,-500.0,0.00013917,2]
[331623792,1720585903569,-500.0,0.00013917,2]
[331623793,1720585903578,-1650.67,0.00013917,2]
[331623794,1720585903588,-728.45,0.00013917,2]
[331623795,1720585903598,-520.45,0.00013917,2]
[331623796,1720585903608,-815.89,0.00013917,2]
[331623797,1720585903618,-1491.11,0.00013917,2]
[331623798,1720585903627,-500.0,0.00013917,2]
[331623799,1720585903638,-551.81,0.00013917,2]
[331623800,1720585903647,-1262.7,0.00013917,2]
[331623801,1720585903658,-500.0,0.00013917,2]
[331623802,1720585903667,-886.39,0.00013917,2]
[331623803,1720585903676,-500.0,0.00013917,2]
[331623804,1720585903686,-500.0,0.00013917,2]
[331623805,1720585903696,-1620.05,0.00013917,2]
[331623806,1720585903706,-500.0,0.00013917,2]
[331623807,1720585903715,-2250.89,0.00013917,2]
[331623808,1720585903725,-3313.25,0.00013917,2]
[331623809,1720585903735,-1742.4,0.00013917,2]
[331623810,1720585903746,-500.0,0.00013917,2]
[331623811,1720585903755,-3176.24,0.00013917,2]
[331623812,1720585903765,-1258.32,0.00013917,2]
[331623813,1720585903774,-500.0,0.00013917,2]
[331623814,1720585903784,-2119.14,0.00013917,2]
[331623815,1720585903794,-500.0,0.00013917,2]
[331623816,1720585903804,-557.1,0.00013917,2]
[331623817,1720585903814,-500.0,0.00013917,2]
[331623818,1720585903823,-549.52,0.00013917,2]
[331623819,1720585903832,-751.21,0.00013917,2]
[331623820,1720585903842,-500.0,0.00013917,2]
[331623821,1720585903851,-500.0,0.00013917,2]
[331623822,1720585903861,-879.3,0.00013917,2]
[331623823,1720585903871,-2288.26,0.00013917,2]
[331623824,1720585903880,-12798.62,0.00013917,2]
[331623825,1720585903890,-502.87,0.00013917,2]
[331623826,1720585903900,-1631.03,0.00013917,2]
[331623827,1720585903909,-500.0,0.00013917,2]
[331623828,1720585903919,-2051.37,0.00013917,2]
[331623829,1720585903928,-2170.04,0.00013917,2]
[331623830,1720585903938,-500.0,0.00013917,2]
[331623831,1720585903948,-1385.1,0.00013917,2]
[331623832,1720585903957,-500.0,0.00013917,2]
[331623833,1720585903967,-1486.22,0.00013917,2]
[331623834,1720585903976,-593.27,0.00013917,2]
[331623835,1720585903989,-929.8,0.00013917,2]
[331623836,1720585903998,-500.0,0.00013917,2]
[331623837,1720585904007,-1011.77,0.00013917,2]
[331623838,1720585904016,-2835.59,0.00013917,2]
[331623839,1720585904025,-2422.32,0.00013917,2]
[331623840,1720585904035,-1288.06,0.00013917,2]
[331623841,1720585904045,-1665.35,0.00013917,2]
[331623842,1720585904054,-500.0,0.00013917,2]
[331623843,1720585904064,-567.3,0.00013917,2]
[331623844,1720585904074,-786.37,0.00013917,2]
[331623845,1720585904084,-2291.84,0.00013917,2]
[331623846,1720585904093,-538.38,0.00013917,2]
[331623847,1720585904103,-500.0,0.00013917,2]
[331623848,1720585904112,-1711.43,0.00013917,2]
[331623849,1720585904128,-500.0,0.00013917,2]
[331623850,1720585904138,-1578.98,0.00013917,2]
[331623851,1720585904149,-500.0,0.00013917,2]
[331623852,1720585904159,-926.41,0.00013917,2]
[331623853,1720585904169,-1520.43,0.00013917,2]
[331623854,1720585904180,-2062.72,0.00013917,2]
[331623855,1720585904190,-909.33,0.00013917,2]
[331623856,1720585904200,-2030.76,0.00013917,2]
[331623857,1720585904211,-875.9,0.00013917,2]
[331623858,1720585904221,-1802.0,0.00013917,2]
[331623859,1720585904230,-577.5,0.00013917,2]
[331623860,1720585904244,-500.0,0.00013917,2]
[331623861,1720585904254,-2647.91,0.00013917,2]
[331623862,1720585904264,-508.1693106,0.00013917,2]
[331623863,1720585904274,-500.0,0.00013917,2]
[331623864,1720585904283,-1255.67,0.00013917,2]
[331623865,1720585904293,-1541.28,0.00013917,2]
[331623866,1720585904303,-500.0,0.00013917,2]
[331623867,1720585904312,-893.14,0.00013917,2]
[331623868,1720585904321,-692.92,0.00013917,2]
[331623869,1720585904330,-500.0,0.00013917,2]
[331623870,1720585904339,-500.0,0.00013917,2]
[331623871,1720585904349,-3297.15,0.00013917,2]
[331623872,1720585904359,-1291.69,0.00013917,2]
[331623873,1720585904370,-2756.77,0.00013917,2]
[331623874,1720585904380,-2371.95,0.00013917,2]
[331623875,1720585904390,-1208.98,0.00013917,2]
[331623876,1720585904399,-962.76,0.00013917,2]
[331623877,1720585904409,-1211.34,0.00013917,2]
[331623878,1720585904419,-2665.07,0.00013917,2]
[331623879,1720585904429,-745.66,0.00013917,2]
[331623880,1720585904439,-3041.67,0.00013917,2]
[331623881,1720585904448,-2848.4,0.00013917,2]
[331623882,1720585904458,-2312.36,0.00013917,2]
[331623883,1720585904468,-1809.12,0.00013917,2]
[331623884,1720585904478,-2816.01,0.00013917,2]
[331623885,1720585904490,-1266.82,0.00013917,2]
[331623886,1720585904500,-1442.9,0.00013917,2]
[331623887,1720585904510,-2469.24,0.00013917,2]
[331623888,1720585904519,-1615.77,0.00013917,2]
[331623889,1720585904533,-1772.4,0.00013917,2]
[331623890,1720585904542,-500.0,0.00013917,2]
[331623891,1720585904552,-3289.3,0.00013917,2]
[331623892,1720585904562,-2323.32,0.00013917,2]
[331623893,1720585904573,-2229.26,0.00013917,2]
[331623894,1720585904584,-973.14,0.00013917,2]
[331623895,1720585904594,-500.0,0.00013917,2]
[331623896,1720585904604,-662.43,0.00013917,2]
[331623897,1720585904614,-620.82,0.00013917,2]
[331623898,1720585904624,-597.87,0.00013917,2]
[331623899,1720585904634,-564.52,0.00013917,2]
[331623900,1720585904646,-621.94,0.00013917,2]
[331623901,1720585904656,-5170.51,0.00013917,2]
[331623902,1720585904667,-2161.39,0.00013917,2]
[331623903,1720585904677,-2084.9,0.00013917,2]
[331623904,1720585904687,-500.0,0.00013917,2]
[331623905,1720585904696,-583.46,0.00013917,2]
[331623906,1720585904707,-500.0,0.00013917,2]
[331623907,1720585904716,-500.0,0.00013917,2]
[331623908,1720585904726,-623.58,0.00013917,2]
[331623909,1720585904739,-1098.28,0.00013917,2]
[331623910,1720585904748,-500.0,0.00013917,2]
[331623911,1720585904757,-1922.09,0.00013917,2]
[331623912,1720585904766,-1751.9,0.00013917,2]
[331623913,1720585904775,-3555.62,0.00013917,2]
[331623914,1720585904785,-500.0,0.00013917,2]
[331623915,1720585904795,-500.0,0.00013917,2]
[331623916,1720585904805,-670.26,0.00013917,2]
[331623917,1720585904815,-1373.39,0.00013917,2]
[331623918,1720585904825,-827.12,0.00013917,2]
[331623919,1720585904834,-609.95,0.00013917,2]
[331623920,1720585904844,-1039.64,0.00013917,2]
[331623921,1720585904853,-1293.89,0.00013917,2]
[331623922,1720585904862,-525.1,0.00013917,2]
[331623923,1720585904871,-2275.24,0.00013917,2]
[331623924,1720585904881,-500.0,0.00013917,2]
[331623925,1720585904891,-2227.83,0.00013917,2]
[331623926,1720585904900,-788.94,0.00013917,2]
[331623927,1720585904909,-1950.08,0.00013917,2]
[331623928,1720585904919,-500.0,0.00013917,2]
[331623929,1720585904928,-1593.0,0.00013917,2]
[331623930,1720585904937,-500.0,0.00013917,2]
[331623931,1720585904947,-670.17,0.00013917,2]
[331623932,1720585904955,-1064.21,0.00013917,2]
[331623933,1720585904964,-702.23,0.00013917,2]
[331623934,1720585904974,-1444.79,0.00013917,2]
[331623935,1720585904983,-500.0,0.00013917,2]
[331623936,1720585904995,-3622.95,0.00013917,2]
[331623937,1720585905004,-955.73,0.00013917,2]
[331623938,1720585905013,-500.0,0.00013917,2]
[331623939,1720585905022,-856.96,0.00013917,2]
[331623940,1720585905032,-821.2,0.00013917,2]
[331623941,1720585905041,-500.0,0.00013917,2]
[331623942,1720585905051,-500.0,0.00013917,2]
[331623943,1720585905060,-11149.98,0.00013917,2]
[331623944,1720585905070,-936.23,0.00013917,2]
[331623945,1720585905079,-711.36,0.00013917,2]
[331623946,1720585905088,-500.0,0.00013917,2]
[331623947,1720585905098,-1021.6,0.00013917,2]
[331623948,1720585905107,-891.23,0.00013917,2]
[331623949,1720585905116,-2577.26,0.00013917,2]
[331623950,1720585905126,-2073.98,0.00013917,2]
[331623951,1720585905135,-500.0,0.00013917,2]
[331623952,1720585905144,-1493.58,0.00013917,2]
[331623953,1720585905153,-671.65,0.00013917,2]
[331623954,1720585905162,-1303.96,0.00013917,2]
[331623955,1720585905172,-500.0,0.00013917,2]
[331623956,1720585905181,-500.0,0.00013917,2]
[331623957,1720585905191,-1604.62,0.00013917,2]
[331623958,1720585905201,-795.46,0.00013917,2]
[331623959,1720585905210,-624.36,0.00013917,2]
[331623960,1720585905219,-500.0,0.00013917,2]
[331623961,1720585905229,-4673.32,0.00013917,2]
[331623962,1720585905240,-500.0,0.00013917,2]
[331623963,1720585905250,-500.0,0.00013917,2]
[331623964,1720585905259,-1036.69,0.00013917,2]
[331623965,1720585905268,-2173.1,0.00013917,2]
[331623966,1720585905278,-616.7,0.00013917,2]
[331623967,1720585905287,-1035.15,0.00013917,2]
[331623968,1720585905296,-1399.95,0.00013917,2]
[331623969,1720585905306,-1755.14,0.00013917,2]
[331623970,1720585905316,-1326.84,0.00013917,2]
[331623971,1720585905326,-1610.08,0.00013917,2]
[331623972,1720585905336,-500.0,0.00013917,2]
[331623973,1720585905347,-500.0,0.00013917,2]
[331623974,1720585905357,-821.93,0.00013917,2]
[331623975,1720585905366,-500.0,0.00013917,2]
[331623976,1720585905376,-500.0,0.00013917,2]
[331623977,1720585905385,-1053.79,0.00013917,2]
[331623978,1720585905396,-500.0,0.00013917,2]
[331623979,1720585905406,-725.4,0.00013917,2]
[331623980,1720585905415,-1747.16,0.00013917,2]
[331623981,1720585905425,-1819.82,0.00013917,2]
[331623982,1720585905435,-1647.96,0.00013917,2]
[331623983,1720585905444,-500.0,0.00013917,2]
[331623984,1720585905453,-500.0,0.00013917,2]
[331623985,1720585905463,-500.0,0.00013917,2]
[331623986,1720585905472,-1162.41,0.00013917,2]
[331623987,1720585905482,-1523.35,0.00013917,2]
[331623988,1720585905493,-6812.75,0.00013917,2]
[331623989,1720585905502,-2422.43,0.00013917,2]
[331623990,1720585905511,-500.0,0.00013917,2]
[331623991,1720585905520,-524.02,0.00013917,2]
[331623992,1720585905530,-500.0,0.00013917,2]
[331623993,1720585905539,-500.0,0.00013917,2]
[331623994,1720585905548,-500.0,0.00013917,2]
[331623995,1720585905557,-355.4738527,0.00013917,2]
[331623996,1720585905566,-500.0,0.00013917,2]
[331623997,1720585905575,-859.46,0.00013917,2]
[331623998,1720585905584,-1832.2,0.00013917,2]
[331623999,1720585905594,-2330.7,0.00013917,2]
[331624000,1720585905603,-2468.37,0.00013917,2]
[331624001,1720585905612,-1199.8,0.00013917,2]
[331624002,1720585905622,-1104.2,0.00013917,2]
[331624003,1720585905632,-500.0,0.00013917,2]
[331624004,1720585905642,-811.35,0.00013917,2]
[331624005,1720585905652,-500.0,0.00013917,2]
[331624006,1720585905661,-500.0,0.00013917,2]
[331624007,1720585905671,-2165.33,0.00013917,2]
[331624008,1720585905680,-4331.32,0.00013917,2]
[331624009,1720585905689,-2646.6,0.00013917,2]
[331624010,1720585905698,-967.9,0.00013917,2]
[331624011,1720585905708,-500.0,0.00013917,2]
[331624012,1720585905717,-704.3,0.00013917,2]
[331624013,1720585905727,-500.0,0.00013917,2]
[331624014,1720585905737,-525.27,0.00013917,2]
[331624015,1720585905746,-1332.13,0.00013917,2]
[331624016,1720585905755,-582.47,0.00013917,2]
[331624017,1720585905765,-898.93,0.00013917,2]
[331624018,1720585905774,-1996.06,0.00013917,2]
[331624019,1720585905783,-3281.86,0.00013917,2]
[331624020,1720585905792,-500.0,0.00013917,2]
[331624021,1720585905801,-500.0,0.00013917,2]
[331624022,1720585905810,-1972.17,0.00013917,2]
[331624023,1720585905819,-924.63,0.00013917,2]
[331624024,1720585905828,-245.758223,0.00013917,2]
[331624025,1720585905837,-964.12,0.00013917,2]
[331624026,1720585905846,-500.0,0.00013917,2]
[331624027,1720585905855,-500.0,0.00013917,2]
[331624028,1720585905865,-500.0,0.00013917,2]
[331624029,1720585905874,-500.0,0.00013917,2]
[331624030,1720585905883,-801.39,0.00013917,2]
[331624031,1720585905892,-1630.31,0.00013917,2]
[331624032,1720585905902,-1280.27,0.00013917,2]
[331624033,1720585905912,-2864.06,0.00013917,2]
[331624034,1720585905921,-500.0,0.00013917,2]
[331624035,1720585905930,-2041.74,0.00013917,2]
[331624036,1720585905940,-500.0,0.00013917,2]
[331624037,1720585905950,-500.0,0.00013917,2]
[331624038,1720585905960,-992.21,0.00013917,2]
[331624039,1720585905970,-861.68,0.00013917,2]
[331624040,1720585905979,-311.8235931,0.00013917,2]
[331624041,1720585905989,-150.0,0.00013926,2]
[331624042,1720585905998,-343.07461692,0.00013929,2]
[331624043,1720585906007,-150.1777291,0.00013929,2]
[331624044,1720585906016,-150.264,0.00013931,2]
[331624045,1720585906025,-150.0,0.0001394,2]
[331624046,1720585906034,-343.07461692,0.00013942,2]
[331624047,1720585906043,-150.1777291,0.00013942,2]
[331624048,1720585906052,-150.0,0.00013944,2]
[331624049,1720585906062,-150.0,0.00013953,2]
[331624050,1720585906071,-343.07461692,0.00013954,2]
[331624051,1720585906080,-150.1777291,0.00013954,2]
[331624052,1720585906089,-150.0,0.00013966,2]
[331624053,1720585906099,-343.07461692,0.00013967,2]
[331624054,1720585906109,-150.1777291,0.00013967,2]
[331624055,1720585906119,-500.0,0.0001397,2]
[331624056,1720585906129,-4683.44,0.00013972,2]
[331624057,1720585906138,-500.0,0.00013972,2]
[331624058,1720585906147,-500.0,0.00013972,2]
[331624059,1720585906158,-500.0,0.00013972,2]
[331624060,1720585906167,-500.0,0.00013972,2]
[331624061,1720585906176,-500.0,0.00013972,2]
[331624062,1720585906186,-500.0,0.00013972,2]
[331624063,1720585906197,-500.0,0.00013972,2]
[331624064,1720585906207,-500.0,0.00013972,2]
[331624065,1720585906217,-500.0,0.00013972,2]
[331624066,1720585906228,-500.0,0.00013972,2]
[331624067,1720585906240,-500.0,0.00013972,2]
[331624068,1720585906249,-500.0,0.00013972,2]
[331624069,1720585906260,-500.0,0.00013972,2]
[331624070,1720585906268,-500.0,0.00013972,2]
[331624071,1720585906277,-500.0,0.00013972,2]
[331624072,1720585906287,-500.0,0.00013972,2]
[331624073,1720585906297,-500.0,0.00013972,2]
[331624074,1720585906307,-891.21,0.00013972,2]
[331624075,1720585906316,-2448.37,0.00013972,2]
[331624076,1720585906326,-500.0,0.00013972,2]
[331624077,1720585906336,-668.8,0.00013972,2]
[331624078,1720585906347,-500.0,0.00013972,2]
[331624079,1720585906356,-558.15,0.00013972,2]
[331624080,1720585906366,-1645.83,0.00013972,2]
[331624081,1720585906375,-1091.94,0.00013972,2]
[331624082,1720585906384,-690.09,0.00013972,2]
[331624083,1720585906394,-200.0,0.00013972,2]
[331624084,1720585906403,-586.04,0.00013972,2]
[331624085,1720585906412,-1971.47,0.00013972,2]
[331624086,1720585906426,-500.0,0.00013972,2]
[331624087,1720585906436,-905.56,0.00013972,2]
[331624088,1720585906446,-1576.43,0.00013972,2]
[331624089,1720585906456,-500.0,0.00013972,2]
[331624090,1720585906465,-1742.21,0.00013972,2]
[331624091,1720585906475,-1898.95,0.00013972,2]
[331624092,1720585906483,-625.6,0.00013972,2]
[331624093,1720585906496,-725.95,0.00013972,2]
[331624094,1720585906505,-607.2,0.00013972,2]
[331624095,1720585906514,-500.0,0.00013972,2]
[331624096,1720585906523,-500.0,0.00013972,2]
[331624097,1720585906532,-1704.78,0.00013972,2]
[331624098,1720585906542,-579.62,0.00013972,2]
[331624099,1720585906551,-500.0,0.00013972,2]
[331624100,1720585906560,-804.68,0.00013972,2]
[331624101,1720585906569,-1941.95,0.00013972,2]
[331624102,1720585906579,-1093.94,0.00013972,2]
[331624103,1720585906588,-500.0,0.00013972,2]
[331624104,1720585906598,-500.0,0.00013972,2]
[331624105,1720585906607,-897.12,0.00013972,2]
[331624106,1720585906617,-605.18,0.00013972,2]
[331624107,1720585906626,-500.0,0.00013972,2]
[331624108,1720585906635,-500.0,0.00013972,2]
[331624109,1720585906646,-479.15273481,0.00013972,2]
[331624110,1720585906656,-500.0,0.00013972,2]
[331624111,1720585906666,-656.85,0.00013972,2]
[331624112,1720585906675,-500.0,0.00013972,2]
[331624113,1720585906685,-572.49654419,0.00013972,2]
[331624114,1720585906694,-2057.73,0.00013972,2]
[331624115,1720585906703,-407.57625413,0.00013972,2]
[331624116,1720585906712,-500.0,0.00013972,2]
[331624117,1720585906722,-500.0,0.00013972,2]
[331624118,1720585906730,-787.33979618,0.00013972,2]
[331624119,1720585907924,-35.95020382,0.00013972,2]
[331624120,1720585907936,-500.0,0.00013972,2]
[331624121,1720585907947,-574.88,0.00013972,2]
[331624122,1720585907958,-500.0,0.00013972,2]
[331624123,1720585907969,-591.95,0.00013972,2]
[331624124,1720585907979,-500.0,0.00013972,2]
[331624125,1720585907991,-955.81,0.00013972,2]
[331624126,1720585908001,-500.0,0.00013972,2]
[331624127,1720585908012,-500.0,0.00013972,2]
[331624128,1720585908023,-881.57,0.00013972,2]
[331624129,1720585908034,-1609.93,0.00013972,2]
[331624130,1720585908045,-769.36,0.00013972,2]
[331624131,1720585908057,-1502.36,0.00013972,2]
[331624132,1720585908067,-500.0,0.00013972,2]
[331624133,1720585908078,-500.0,0.00013972,2]
[331624134,1720585908090,-1140.23,0.00013972,2]
[331624135,1720585908102,-500.0,0.00013972,2]
[331624136,1720585908114,-500.0,0.00013972,2]
[331624137,1720585908125,-1317.89,0.00013972,2]
[331624138,1720585908136,-500.0,0.00013972,2]
[331624139,1720585909272,-500.0,0.00013972,2]
[331624140,1720585909299,-598.9,0.00013972,2]
[331624141,1720585909316,-500.0,0.00013972,2]
[331624142,1720585909340,-582.94,0.00013972,2]
[331624143,1720585909361,-974.55,0.00013972,2]
[331624144,1720585909384,-664.53,0.00013972,2]
[331624145,1720585909403,-577.31,0.00013972,2]
[331624146,1720585909417,-500.0,0.00013972,2]
[331624147,1720585909427,-533.52,0.00013972,2]
[331624148,1720585909436,-511.19,0.00013972,2]
[331624149,1720585909446,-790.55,0.00013972,2]
[331624150,1720585909455,-1568.25,0.00013972,2]
[331624151,1720585909465,-500.0,0.00013972,2]
[331624152,1720585909474,-500.0,0.00013972,2]
[331624153,1720585909484,-651.92,0.00013972,2]
[331624154,1720585909495,-500.0,0.00013972,2]
[331624155,1720585909504,-763.64,0.00013972,2]
[331624156,1720585909514,-500.0,0.00013972,2]
[331624157,1720585909522,-500.0,0.00013972,2]
[331624158,1720585909531,-1714.55,0.00013972,2]
[331624159,1720585909541,-535.96,0.00013972,2]
[331624160,1720585909550,-600.5,0.00013972,2]
[331624161,1720585909560,-500.0,0.00013972,2]
[331624162,1720585909571,-500.0,0.00013972,2]
[331624163,1720585909580,-784.46,0.00013972,2]
[331624164,1720585909591,-500.0,0.00013972,2]
[331624165,1720585909600,-500.0,0.00013972,2]
[331624166,1720585909608,-59.16803678,0.00013972,2]
[331624167,1720585909935,-500.0,0.00013863,2]
[331624168,1720585909945,-186.43993092,0.00013863,2]
[331624169,1720585909969,-284.38077583,0.00013863,2]
[331624170,1720585910002,-898.35929325,0.00013863,2]
[331624171,1720585910011,-500.0,0.00013917,2]
[331624172,1720585910020,-440.83196322,0.00013972,2]
[331624173,1720585910029,-674.26,0.00013972,2]
[331624174,1720585910038,-221.6737319,0.00013972,2]
[331624175,1720585910047,-500.0,0.00013972,2]
[331624176,1720585910057,-953.74,0.00013972,2]
[331624177,1720585910066,-2242.83,0.00013972,2]
[331624178,1720585910075,-573.82,0.00013972,2]
[331624179,1720585910085,-500.0,0.00013972,2]
[331624180,1720585910094,-2164.72,0.00013972,2]
[331624181,1720585910104,-500.0,0.00013972,2]
[331624182,1720585910114,-500.0,0.00013972,2]
[331624183,1720585910124,-982.47,0.00013972,2]
[331624184,1720585910134,-500.0,0.00013972,2]
[331624185,1720585910145,-1477.67,0.00013972,2]
[331624186,1720585910155,-500.0,0.00013972,2]
[331624187,1720585910165,-500.0,0.00013972,2]
[331624188,1720585910175,-1781.26,0.00013972,2]
[331624189,1720585910184,-1330.76,0.00013972,2]
[331624190,1720585910194,-846.15,0.00013972,2]
[331624191,1720585910204,-500.0,0.00013972,2]
[331624192,1720585910214,-948.26,0.00013972,2]
[331624193,1720585910223,-704.71,0.00013972,2]
[331624194,1720585910233,-596.24,0.00013972,2]